fUST/lending_fUST_20240131
["ID","MTS","AMOUNT","RATE_DAILY","PERIOD"]
[313040723,1706675438551,-155.99961151,0.00021055,2]
[313040724,1706675438561,-200.55052755,0.00021055,2]
[313040725,1706675438571,-167.38911858,0.00021055,2]
[313040726,1706675438580,-2073.27680769,0.00021055,2]
[313040727,1706675438589,-1673.64373957,0.00021055,2]
[313040728,1706675438599,-295.88124969,0.00021056,2]
[313040729,1706675438609,-200.0,0.00023152,7]
[313040730,1706675438618,-24900.0,0.00023153,2]
[313040731,1706675438629,-280.0,0.00025467,7]
[313040732,1706675438638,-3582.49,0.00027087,3]
[313040733,1706675438649,-6831.57,0.00027087,3]
[313040734,1706675438660,-359.50113381,0.00027096,2]
[313040735,1706675438670,-369.78801157,0.00027096,2]
[313040736,1706675438679,-1000.0,0.00027096,3]
[313040737,1706675438689,-1021.26999705,0.00027096,3]
[313040738,1706675438698,-276000.0,0.00027097,2]
[313040739,1706675438708,-6447.21174305,0.00027246,2]
[313040740,1706675438718,-7227.82935479,0.00027246,2]
[313040741,1706675438727,-1611.17857816,0.00027277,2]
[313040742,1706675438737,-500.0,0.000273,2]
[313040743,1706675438747,-635.41680348,0.00027387,2]
[313040744,1706675438756,-280.15723649,0.00027387,2]
[313040745,1706675438766,-395.46875411,0.00027396,2]
[313040746,1706675438776,-220.52443697,0.00027396,2]
[313040747,1706675438786,-525.18728111,0.00027396,2]
[313040748,1706675438796,-464.01142427,0.00027396,2]
[313040749,1706675438805,-359.19136888,0.00027396,2]
[313040750,1706675438816,-500.0,0.00027397,2]
[313040751,1706675438825,-500.0,0.00027397,2]
[313040752,1706675438835,-500.0,0.00027397,2]
[313040753,1706675438845,-500.0,0.00027397,2]
[313040754,1706675438854,-500.0,0.00027397,2]
[313040755,1706675438864,-500.0,0.00027397,2]
[313040756,1706675438873,-510.28166976,0.00027397,2]
[313040757,1706675438883,-500.0,0.00027397,2]
[313040758,1706675438892,-500.0,0.00027397,2]
[313040759,1706675438902,-500.0,0.00027397,2]
[313040760,1706675438914,-500.0,0.00027397,2]
[313040761,1706675438924,-500.0,0.00027397,2]
[313040762,1706675438934,-500.0,0.00027397,2]
[313040763,1706675438943,-500.0,0.00027397,2]
[313040764,1706675438953,-564.60602361,0.00027397,2]
[313040765,1706675438962,-201.30503836,0.00027397,2]
[313040766,1706675438972,-500.0,0.00027397,2]
[313040767,1706675438982,-500.0,0.00027397,2]
[313040768,1706675438992,-560.05,0.00027397,2]
[313040769,1706675439001,-500.0,0.00027397,2]
[313040770,1706675439011,-500.0,0.00027397,2]
[313040771,1706675439021,-513.61736251,0.00027397,2]
[313040772,1706675439032,-500.0,0.00027397,2]
[313040773,1706675439041,-500.0,0.00027397,2]
[313040774,1706675439052,-517.49697608,0.00027397,2]
[313040775,1706675439061,-500.0,0.00027397,2]
[313040776,1706675439071,-500.0,0.00027397,2]
[313040777,1706675439081,-500.0,0.00027397,2]
[313040778,1706675439090,-475.54768842,0.00027397,2]
[313040779,1706675439100,-500.0,0.00027397,2]
[313040780,1706675439109,-500.0,0.00027397,2]
[313040781,1706675439119,-500.0,0.00027397,2]
[313040782,1706675439133,-500.0,0.00027397,2]
[313040783,1706675439143,-500.0,0.00027397,2]
[313040784,1706675439153,-500.0,0.00027397,2]
[313040785,1706675439165,-500.0,0.00027397,2]
[313040786,1706675439175,-500.0,0.00027397,2]
[313040787,1706675439184,-500.0,0.00027397,2]
[313040788,1706675439194,-500.0,0.00027397,2]
[313040789,1706675439203,-500.0,0.00027397,2]
[313040790,1706675439215,-500.0,0.00027397,2]
[313040791,1706675439224,-500.0,0.00027397,2]
[313040792,1706675439233,-500.0,0.00027397,2]
[313040793,1706675439243,-500.0,0.00027397,2]
[313040794,1706675439252,-500.0,0.00027397,2]
[313040795,1706675439262,-500.0,0.00027397,2]
[313040796,1706675439272,-500.0,0.00027397,2]
[313040797,1706675439281,-500.0,0.00027397,2]
[313040798,1706675439291,-500.0,0.00027397,2]
[313040799,1706675439299,-500.0,0.00027397,2]
[313040800,1706675439308,-436.81367918,0.00027397,2]
[313040801,1706675439317,-885.34,0.00027397,2]
[313040802,1706675439326,-515.07948473,0.00027397,2]
[313040803,1706675439335,-500.0,0.00027397,2]
[313040804,1706675439344,-500.0,0.00027397,2]
[313040805,1706675439353,-505.35884581,0.00027397,2]
[313040806,1706675439362,-500.0,0.00027397,2]
[313040807,1706675439371,-500.0,0.00027397,2]
[313040808,1706675439380,-500.0,0.00027397,2]
[313040809,1706675439390,-500.0,0.00027397,2]
[313040810,1706675439399,-3472.22,0.00027397,2]
[313040811,1706675439408,-500.0,0.00027397,2]
[313040812,1706675439417,-570.36623698,0.00027397,2]
[313040813,1706675439426,-500.0,0.00027397,2]
[313040814,1706675439435,-500.0,0.00027397,2]
[313040815,1706675439444,-500.0,0.00027397,2]
[313040816,1706675439455,-500.0,0.00027397,2]
[313040817,1706675439464,-500.0,0.00027397,2]
[313040818,1706675439473,-281.62078907,0.00027397,2]
[313040819,1706675439482,-500.0,0.00027397,2]
[313040820,1706675439491,-500.0,0.00027397,2]
[313040821,1706675439500,-500.0,0.00027397,2]
[313040822,1706675439509,-500.0,0.00027397,2]
[313040823,1706675439518,-500.0,0.00027397,2]
[313040824,1706675439528,-500.0,0.00027397,2]
[313040825,1706675439538,-500.0,0.00027397,2]
[313040826,1706675439547,-1000.0,0.00027397,2]
[313040827,1706675439556,-501.3,0.00027397,2]
[313040828,1706675439566,-500.0,0.00027397,2]
[313040829,1706675439574,-500.0,0.00027397,2]
[313040830,1706675439583,-500.0,0.00027397,2]
[313040831,1706675439592,-151.0,0.00027397,2]
[313040832,1706675439601,-151.0,0.00027397,2]
[313040833,1706675439609,-500.0,0.00027397,2]
[313040834,1706675439618,-151.0,0.00027397,2]
[313040835,1706675439627,-245.150821,0.00027397,2]
[313040836,1706675439636,-2184.41,0.00027397,2]
[313040837,1706675439645,-528.13712602,0.00027397,2]
[313040838,1706675439654,-357.03923646,0.00027397,2]
[313040839,1706675439664,-445.43476679,0.00027397,2]
[313040840,1706675439673,-500.0,0.00027397,2]
[313040841,1706675439682,-500.0,0.00027397,2]
[313040842,1706675439691,-500.0,0.00027397,2]
[313040843,1706675439701,-500.0,0.00027397,2]
[313040844,1706675439710,-524.08,0.00027397,2]
[313040845,1706675439719,-151.0,0.00027397,2]
[313040846,1706675439727,-151.0,0.00027397,2]
[313040847,1706675439736,-500.0,0.00027397,2]
[313040848,1706675439746,-500.0,0.00027397,2]
[313040849,1706675439755,-502.58473954,0.00027397,2]
[313040850,1706675439763,-203.85124722,0.00027397,2]
[313040851,1706675439773,-957.7,0.00027397,2]
[313040852,1706675439782,-500.0,0.00027397,2]
[313040853,1706675439791,-247.17782299,0.00027397,2]
[313040854,1706675439800,-500.0,0.00027397,2]
[313040856,1706675439809,-228.77193586,0.00027397,2]
[313040858,1706675439818,-590.71121916,0.00027397,2]
[313040860,1706675439827,-500.0,0.00027397,2]
[313040862,1706675439836,-500.0,0.00027397,2]
[313040863,1706675439845,-500.0,0.00027397,2]
[313040864,1706675439854,-500.0,0.00027397,2]
[313040865,1706675439863,-500.0,0.00027397,2]
[313040867,1706675439872,-500.0,0.00027397,2]
[313040868,1706675439881,-500.0,0.00027397,2]
[313040869,1706675439891,-500.0,0.00027397,2]
[313040870,1706675439900,-500.0,0.00027397,2]
[313040871,1706675439910,-578.33480574,0.00027397,2]
[313040872,1706675439919,-500.0,0.00027397,2]
[313040873,1706675439928,-509.93324469,0.00027397,2]
[313040874,1706675439937,-306.69723996,0.00027397,2]
[313040875,1706675439947,-500.0,0.00027397,2]
[313040876,1706675439956,-633.82584577,0.00027397,2]
[313040877,1706675440066,-500.0,0.00027397,2]
[313040878,1706675440077,-500.0,0.00027397,2]
[313040879,1706675440087,-500.0,0.00027397,2]
[313040880,1706675440096,-505.93559687,0.00027397,2]
[313040881,1706675440106,-708.41,0.00027397,2]
[313040882,1706675440115,-500.0,0.00027397,2]
[313040883,1706675440127,-500.0,0.00027397,2]
[313040884,1706675440136,-500.0,0.00027397,2]
[313040885,1706675440145,-500.0,0.00027397,2]
[313040886,1706675440155,-541.55455863,0.00027397,2]
[313040887,1706675440167,-189.17551383,0.00027397,2]
[313040888,1706675440177,-151.0,0.00027397,2]
[313040889,1706675440186,-500.0,0.00027397,2]
[313040890,1706675440195,-606.6,0.00027397,2]
[313040891,1706675440206,-500.0,0.00027397,2]
[313040892,1706675440218,-500.0,0.00027397,2]
[313040893,1706675440229,-330.30315259,0.00027397,2]
[313040894,1706675440238,-500.0,0.00027397,2]
[313040895,1706675440248,-363.58117365,0.00027397,2]
[313040896,1706675440258,-500.0,0.00027397,2]
[313040897,1706675440268,-500.0,0.00027397,2]
[313040898,1706675440278,-511.86998028,0.00027397,2]
[313040899,1706675440288,-500.0,0.00027397,2]
[313040900,1706675440298,-501.61482898,0.00027397,2]
[313040901,1706675440307,-500.0,0.00027397,2]
[313040902,1706675440316,-352.27375048,0.00027397,2]
[313040903,1706675440326,-501.01811761,0.00027397,2]
[313040904,1706675440335,-518.82678093,0.00027397,2]
[313040905,1706675440345,-500.0,0.00027397,2]
[313040906,1706675440355,-1469.84,0.00027397,2]
[313040907,1706675440364,-500.0,0.00027397,2]
[313040908,1706675440374,-500.0,0.00027397,2]
[313040909,1706675440383,-256.84012446,0.00027397,2]
[313040910,1706675440392,-793.97,0.00027397,2]
[313040911,1706675440402,-2029.62,0.00027397,2]
[313040912,1706675440414,-2029.62,0.00027397,2]
[313040914,1706675440423,-2029.62,0.00027397,2]
[313040915,1706675440432,-998.85584854,0.00027397,2]
[313040916,1706675440556,-625.9,0.00027397,2]
[313041007,1706675443485,-5692.97,0.00027387,3]
[313041009,1706675443495,-404.86415146,0.00027397,2]
[313041011,1706675443505,-2029.62,0.00027397,2]
[313041012,1706675443514,-2029.62,0.00027397,2]
[313041013,1706675443524,-2029.62,0.00027397,2]
[313041014,1706675443534,-2029.62,0.00027397,2]
[313041015,1706675443543,-2029.62,0.00027397,2]
[313041016,1706675443553,-504.92171564,0.00027397,2]
[313041017,1706675443562,-2029.62,0.00027397,2]
[313041018,1706675443572,-2029.62,0.00027397,2]
[313041019,1706675443581,-2029.62,0.00027397,2]
[313041020,1706675443591,-2029.62,0.00027397,2]
[313041021,1706675443600,-1065.89547384,0.00027397,2]
[313041038,1706675446536,-963.72452616,0.00027397,2]
[313041039,1706675446545,-2029.62,0.00027397,2]
[313041040,1706675446555,-2029.62,0.00027397,2]
[313041041,1706675446565,-2029.62,0.00027397,2]
[313041042,1706675446574,-208.43147488,0.00027397,2]
[313041108,1706676639119,-273.02300698,0.00021047,2]
[313041110,1706676639128,-723.04118176,0.00021048,2]
[313041167,1706676643638,-1002.0,0.00021048,2]
[313041231,1706677838762,-399.02518946,0.00021047,2]
[313041232,1706677838772,-5071.32652969,0.00021048,2]
[313041233,1706677838782,-13125.48438338,0.00021048,2]
[313041234,1706677838792,-213.6847704,0.00021055,2]
[313041235,1706677838801,-158.94335624,0.00021055,2]
[313041236,1706677838811,-273.25232532,0.00021055,2]
[313041237,1706677838820,-181.50848722,0.00021055,2]
[313041238,1706677838830,-2106.13490818,0.00021056,2]
[313041239,1706677838839,-200.0,0.00023152,7]
[313041240,1706677838848,-2010.74882434,0.00024701,2]
[313041241,1706677838858,-3872.1975234,0.00024702,2]
[313041242,1706677838870,-280.0,0.00025467,7]
[313041243,1706677838879,-620.38344904,0.00026334,2]
[313041244,1706677838889,-1563.6160721,0.00027,2]
[313041245,1706677838898,-211.5096168,0.00027,2]
[313041246,1706677838907,-1973.03669163,0.00027292,2]
[313041247,1706677838916,-356.95514713,0.00027297,2]
[313041248,1706677838928,-730.09711842,0.00027297,2]
[313041308,1706677845864,-538.61450309,0.00027297,2]
[313041309,1706678107418,24900.0,0.00020018,2]
[313041310,1706678174043,300.0,0.00020018,2]
[313041312,1706678188046,300.0,0.00020018,2]
[313041314,1706678283398,5000.0,0.00020415,5]
[313041315,1706678584418,21600.0,0.00019979,2]
[313041316,1706678584440,2022.2261244,0.00019979,2]
[313041361,1706679038076,-155.0294556,0.00020891,2]
[313041362,1706679038085,-155.0294556,0.00020891,2]
[313041363,1706679038095,-159.01858397,0.00020892,2]
[313041364,1706679038104,-3323.09062693,0.00020892,2]
[313041365,1706679038113,-273.02300698,0.00020893,2]
[313041366,1706679038122,-3750.94562833,0.00020893,2]
[313041367,1706679038132,-13044.85165346,0.00020894,2]
[313041368,1706679038142,-7971.79381667,0.00020894,2]
[313041369,1706679038152,-201.52824782,0.00020946,2]
[313041370,1706679038161,-155.34424775,0.0002095,2]
[313041371,1706679038171,-3451.72,0.00021036,3]
[313041372,1706679038180,-6582.2,0.00021036,3]
[313041373,1706679038189,-5485.16,0.00021036,3]
[313041374,1706679038198,-4570.97,0.00021036,3]
[313041375,1706679038207,-20932.83950967,0.00021046,2]
[313041376,1706679038216,-366.35652913,0.00021046,2]
[313041377,1706679038225,-155.99930692,0.00021046,2]
[313041378,1706679038237,-2106.9014739,0.00021046,2]
[313041379,1706679038248,-262.89218231,0.00021046,2]
[313041380,1706679038256,-592.73240842,0.00021046,2]
[313041381,1706679038265,-200.55052755,0.00021046,2]
[313041382,1706679038274,-295.88124969,0.00021046,2]
[313041383,1706679038283,-427.35447033,0.00021046,2]
[313041384,1706679038292,-167.38911858,0.00021046,2]
[313041385,1706679038301,-2073.27680769,0.00021046,2]
[313041386,1706679038310,-1673.64373957,0.00021046,2]
[313041387,1706679038319,-489.0,0.00021046,2]
[313041388,1706679038329,-225.65776733,0.00021046,2]
[313041389,1706679038338,-181.49299151,0.00021046,2]
[313041390,1706679038347,-13268.00328189,0.00021046,2]
[313041391,1706679038356,-2008.44942114,0.00021046,2]
[313041392,1706679038365,-155.7843826,0.00021046,2]
[313041393,1706679038374,-606.42259475,0.00021046,2]
[313041394,1706679038386,-6344.87830481,0.00021046,2]
[313041395,1706679038395,-1266.95335862,0.00021046,2]
[313041396,1706679038404,-200.0,0.00021046,2]
[313041397,1706679038413,-167.7225111,0.00021046,2]
[313041398,1706679038422,-155.63801472,0.00021047,2]
[313041399,1706679038431,-155.09988007,0.00021047,2]
[313041400,1706679038440,-369.78801157,0.00021047,2]
[313041401,1706679038449,-359.50113381,0.00021047,2]
[313041402,1706679038458,-1000.0,0.00021047,3]
[313041403,1706679038467,-1021.26999705,0.00021047,3]
[313041404,1706679038476,-720.02501507,0.00021048,2]
[313041405,1706679038485,-259988.66606287,0.00021048,2]
[313041406,1706679038494,-623.52629564,0.00021048,2]
[313041407,1706679038503,-155.15517331,0.00021048,2]
[313041408,1706679038512,-155.1513096,0.00021048,2]
[313041409,1706679038521,-415.7523776,0.00021048,2]
[313041410,1706679038530,-155.29121027,0.00021055,2]
[313041411,1706679038539,-155.29588749,0.00021055,2]
[313041412,1706679038548,-155.37247978,0.00021055,2]
[313041413,1706679038557,-305.13321104,0.00021055,2]
[313041414,1706679038566,-714.93236091,0.00021055,2]
[313041415,1706679038575,-155.69464187,0.00021055,2]
[313041416,1706679038584,-471.05101678,0.00021056,2]
[313041417,1706679038593,-169.36565249,0.000215,2]
[313041418,1706679038602,-306.94542516,0.000217,2]
[313041419,1706679038611,-168.113739,0.00021918,2]
[313041420,1706679038620,-427.6993496,0.00022,2]
[313041421,1706679038628,-2036.5412467,0.00022,2]
[313041422,1706679038637,-3985.86902513,0.00022,2]
[313041423,1706679038647,-169.03040675,0.000225,2]
[313041424,1706679038656,-200.0,0.00022982,7]
[313041425,1706679038665,-4487.39172967,0.00023,2]
[313041426,1706679038674,-160.08022409,0.00023,2]
[313041427,1706679038683,-151.0,0.00023826,2]
[313041428,1706679038692,-168.113739,0.00024482,2]
[313041429,1706679038701,-499.11435295,0.0002496,5]
[313041430,1706679038710,-280.0,0.0002528,7]
[313041431,1706679038719,-620.01917386,0.00026268,2]
[313041432,1706679038727,-151.0,0.00026606,2]
[313041433,1706679038737,-6200.30917304,0.00027032,2]
[313041434,1706679038746,-9687.45411684,0.00027297,2]
[313041435,1706679038755,-986.45486647,0.00027297,2]
[313041436,1706679038764,-230.24186218,0.00027297,2]
[313041437,1706679038773,-280.15723649,0.00027297,2]
[313041438,1706679038782,-1828.98396681,0.00027297,2]
[313041439,1706679038791,-765.11367349,0.00027297,2]
[313041440,1706679038800,-151.0,0.00027297,2]
[313041441,1706679038809,-151.485151,0.00027297,2]
[313041442,1706679038818,-812.061913,0.00027297,2]
[313041443,1706679038827,-812.061913,0.00027297,2]
[313041444,1706679038837,-925.80163,0.00027297,2]
[313041445,1706679038846,-925.80163,0.00027297,2]
[313041446,1706679038856,-151.0,0.00027297,2]
[313041447,1706679038865,-7354.097909,0.00027297,2]
[313041448,1706679038874,-7354.097909,0.00027297,2]
[313041449,1706679038883,-500.0,0.000273,2]
[313041450,1706679038893,-245.714478,0.000273,2]
[313041451,1706679038902,-488.89820596,0.00027335,2]
[313041452,1706679038911,-2695.22817553,0.00027337,2]
[313041453,1706679038921,-5000.0,0.00027352,2]
[313041454,1706679038930,-8280.05037019,0.00027352,2]
[313041455,1706679038939,-18940.10086165,0.00027367,2]
[313041456,1706679038949,-569.87075487,0.00027367,2]
[313041457,1706679038958,-5000.0,0.00027367,2]
[313041458,1706679038967,-151.0,0.00027367,2]
[313041459,1706679038976,-151.0,0.00027367,2]
[313041460,1706679038987,-151.0,0.00027367,2]
[313041461,1706679038996,-812.061913,0.00027367,2]
[313041462,1706679039005,-812.061913,0.00027367,2]
[313041463,1706679039014,-925.80163,0.00027367,2]
[313041464,1706679039023,-925.80163,0.00027367,2]
[313041465,1706679039034,-151.0,0.00027367,2]
[313041466,1706679039043,-7354.097909,0.00027367,2]
[313041467,1706679039052,-7354.097909,0.00027367,2]
[313041468,1706679039061,-196.54733669,0.00027387,2]
[313041469,1706679039159,-395.46875411,0.00027396,2]
[313041470,1706679039169,-220.52443697,0.00027396,2]
[313041471,1706679039178,-359.19136888,0.00027396,2]
[313041472,1706679039188,-464.01142427,0.00027396,2]
[313041473,1706679039198,-525.18728111,0.00027396,2]
[313041474,1706679039208,-925.80163,0.00027396,2]
[313041475,1706679039218,-925.80163,0.00027396,2]
[313041476,1706679039227,-212.985165,0.00027396,2]
[313041477,1706679039237,-7354.097909,0.00027396,2]
[313041478,1706679039251,-7354.097909,0.00027396,2]
[313041479,1706679039260,-500.0,0.00027397,2]
[313041480,1706679039269,-500.0,0.00027397,2]
[313041481,1706679039278,-500.0,0.00027397,2]
[313041482,1706679039288,-500.0,0.00027397,2]
[313041483,1706679039297,-500.0,0.00027397,2]
[313041484,1706679039306,-525.54704161,0.00027397,2]
[313041485,1706679039316,-500.0,0.00027397,2]
[313041486,1706679039326,-510.28166976,0.00027397,2]
[313041487,1706679039335,-589.20595474,0.00027397,2]
[313041488,1706679039344,-500.0,0.00027397,2]
[313041489,1706679039354,-500.0,0.00027397,2]
[313041490,1706679039363,-500.0,0.00027397,2]
[313041491,1706679039372,-500.0,0.00027397,2]
[313041492,1706679039381,-500.0,0.00027397,2]
[313041493,1706679039391,-201.30503836,0.00027397,2]
[313041494,1706679039400,-1000.0,0.00027397,2]
[313041495,1706679039409,-500.0,0.00027397,2]
[313041496,1706679039418,-560.05,0.00027397,2]
[313041497,1706679039427,-500.0,0.00027397,2]
[313041498,1706679039436,-513.61736251,0.00027397,2]
[313041499,1706679039445,-500.0,0.00027397,2]
[313041500,1706679039454,-500.0,0.00027397,2]
[313041501,1706679039463,-517.49697608,0.00027397,2]
[313041502,1706679039472,-500.0,0.00027397,2]
[313041503,1706679039481,-500.0,0.00027397,2]
[313041504,1706679039490,-500.0,0.00027397,2]
[313041505,1706679039499,-564.60602361,0.00027397,2]
[313041506,1706679039508,-500.0,0.00027397,2]
[313041507,1706679039518,-500.0,0.00027397,2]
[313041508,1706679039527,-500.0,0.00027397,2]
[313041509,1706679039536,-500.0,0.00027397,2]
[313041510,1706679039546,-500.0,0.00027397,2]
[313041511,1706679039554,-500.0,0.00027397,2]
[313041512,1706679039564,-500.0,0.00027397,2]
[313041513,1706679039573,-500.0,0.00027397,2]
[313041514,1706679039582,-500.0,0.00027397,2]
[313041515,1706679039591,-500.0,0.00027397,2]
[313041516,1706679039600,-500.0,0.00027397,2]
[313041517,1706679039609,-500.0,0.00027397,2]
[313041518,1706679039619,-212.07454751,0.00027397,2]
[313041519,1706679039633,-287.92545249,0.00027397,2]
[313041520,1706679039646,-500.0,0.00027397,2]
[313041521,1706679039655,-500.0,0.00027397,2]
[313041522,1706679039665,-500.0,0.00027397,2]
[313041523,1706679039675,-500.0,0.00027397,2]
[313041524,1706679039684,-515.07948473,0.00027397,2]
[313041525,1706679039693,-500.0,0.00027397,2]
[313041526,1706679039702,-500.0,0.00027397,2]
[313041527,1706679039711,-500.0,0.00027397,2]
[313041528,1706679039721,-500.0,0.00027397,2]
[313041529,1706679039730,-500.0,0.00027397,2]
[313041530,1706679039740,-505.35884581,0.00027397,2]
[313041531,1706679039750,-885.34,0.00027397,2]
[313041532,1706679039759,-500.0,0.00027397,2]
[313041533,1706679039768,-500.0,0.00027397,2]
[313041534,1706679039778,-500.0,0.00027397,2]
[313041535,1706679039787,-475.54768842,0.00027397,2]
[313041536,1706679039796,-3472.22,0.00027397,2]
[313041537,1706679039806,-500.0,0.00027397,2]
[313041538,1706679039816,-500.0,0.00027397,2]
[313041539,1706679039825,-570.36623698,0.00027397,2]
[313041540,1706679039834,-500.0,0.00027397,2]
[313041541,1706679039843,-500.0,0.00027397,2]
[313041542,1706679039853,-500.0,0.00027397,2]
[313041543,1706679039862,-500.0,0.00027397,2]
[313041544,1706679039871,-500.0,0.00027397,2]
[313041545,1706679039881,-500.0,0.00027397,2]
[313041546,1706679039891,-199.742756,0.00027397,2]
[313041547,1706679039901,-500.0,0.00027397,2]
[313041548,1706679039909,-500.0,0.00027397,2]
[313041549,1706679039918,-281.62078907,0.00027397,2]
[313041550,1706679039928,-500.0,0.00027397,2]
[313041551,1706679039937,-500.0,0.00027397,2]
[313041552,1706679039946,-500.0,0.00027397,2]
[313041553,1706679039954,-500.0,0.00027397,2]
[313041554,1706679039964,-1000.0,0.00027397,2]
[313041555,1706679039973,-500.0,0.00027397,2]
[313041556,1706679039983,-500.0,0.00027397,2]
[313041557,1706679039993,-2184.41,0.00027397,2]
[313041558,1706679040002,-500.0,0.00027397,2]
[313041559,1706679040011,-500.0,0.00027397,2]
[313041560,1706679040021,-500.0,0.00027397,2]
[313041561,1706679040031,-1115.41,0.00027397,2]
[313041562,1706679040040,-151.0,0.00027397,2]
[313041563,1706679040050,-151.0,0.00027397,2]
[313041564,1706679040059,-151.0,0.00027397,2]
[313041565,1706679040069,-528.13712602,0.00027397,2]
[313041566,1706679040079,-245.150821,0.00027397,2]
[313041567,1706679040088,-501.3,0.00027397,2]
[313041568,1706679040098,-445.43476679,0.00027397,2]
[313041569,1706679040107,-357.03923646,0.00027397,2]
[313041570,1706679040117,-500.0,0.00027397,2]
[313041571,1706679040126,-500.0,0.00027397,2]
[313041572,1706679040136,-524.08,0.00027397,2]
[313041573,1706679040147,-203.85124722,0.00027397,2]
[313041574,1706679040156,-500.0,0.00027397,2]
[313041575,1706679040167,-500.0,0.00027397,2]
[313041576,1706679040176,-151.0,0.00027397,2]
[313041578,1706679040185,-151.0,0.00027397,2]
[313041579,1706679040195,-151.0,0.00027397,2]
[313041580,1706679040204,-151.0,0.00027397,2]
[313041581,1706679040214,-151.0,0.00027397,2]
[313041582,1706679040223,-151.0,0.00027397,2]
[313041583,1706679040233,-151.0,0.00027397,2]
[313041585,1706679040244,-151.0,0.00027397,2]
[313041587,1706679040254,-151.0,0.00027397,2]
[313041589,1706679040263,-151.0,0.00027397,2]
[313041590,1706679040272,-151.0,0.00027397,2]
[313041591,1706679040282,-151.0,0.00027397,2]
[313041592,1706679040292,-222.085552,0.00027397,2]
[313041594,1706679040301,-500.0,0.00027397,2]
[313041595,1706679040311,-155.6356974,0.00027397,2]
[313041596,1706679040320,-228.77193586,0.00027397,2]
[313041597,1706679040330,-957.7,0.00027397,2]
[313041598,1706679040340,-500.0,0.00027397,2]
[313041600,1706679040350,-502.58473954,0.00027397,2]
[313041601,1706679040359,-500.0,0.00027397,2]
[313041602,1706679040368,-590.71121916,0.00027397,2]
[313041603,1706679040378,-500.0,0.00027397,2]
[313041604,1706679040388,-247.17782299,0.00027397,2]
[313041605,1706679040398,-500.0,0.00027397,2]
[313041606,1706679040407,-500.0,0.00027397,2]
[313041607,1706679040417,-500.0,0.00027397,2]
[313041608,1706679040426,-500.0,0.00027397,2]
[313041609,1706679040435,-500.0,0.00027397,2]
[313041610,1706679040445,-505.93559687,0.00027397,2]
[313041611,1706679040454,-500.0,0.00027397,2]
[313041612,1706679040464,-500.0,0.00027397,2]
[313041613,1706679040473,-306.69723996,0.00027397,2]
[313041614,1706679040483,-500.0,0.00027397,2]
[313041615,1706679040492,-708.41,0.00027397,2]
[313041616,1706679040501,-500.0,0.00027397,2]
[313041617,1706679040511,-500.0,0.00027397,2]
[313041618,1706679040520,-500.0,0.00027397,2]
[313041619,1706679040529,-500.0,0.00027397,2]
[313041620,1706679040538,-500.0,0.00027397,2]
[313041621,1706679040548,-500.0,0.00027397,2]
[313041622,1706679040557,-189.17551383,0.00027397,2]
[313041623,1706679040566,-578.33480574,0.00027397,2]
[313041624,1706679040575,-509.93324469,0.00027397,2]
[313041625,1706679040585,-500.0,0.00027397,2]
[313041626,1706679040594,-633.82584577,0.00027397,2]
[313041627,1706679040603,-500.0,0.00027397,2]
[313041628,1706679040612,-154.382796,0.00027397,2]
[313041629,1706679040622,-500.0,0.00027397,2]
[313041630,1706679040631,-501.01811761,0.00027397,2]
[313041631,1706679040642,-500.0,0.00027397,2]
[313041632,1706679040651,-500.0,0.00027397,2]